[Event "Titled Tuesday Blitz March 08 Early 2022"]
[White "Iljin, Timofey"]
[Black "Goltsev, Dmitry"]
[WhiteFideId "14110180"]
[BlackFideId "24176710"]
[WhiteElo "2396"]
[BlackElo "2273"]
[Result "1-0"]
[Round "07"]
[TimeControl "180+1"]
[Date "2022.03.09"]
[WhiteClock "0:00:07"]
[BlackClock "0:00:07"]

1. e4 {[%clk 0:03:00]}  d5 {[%clk 0:02:59]} 2. exd5 {[%clk 0:03:00]}  Qxd5 {[%clk 0:02:58]} 3. Nc3 {[%clk 0:02:59]}  Qa5 {[%clk 0:02:58]} 4. d4 {[%clk 0:03:00]}  Nf6 {[%clk 0:02:57]} 5. Nf3 {[%clk 0:02:59]}  Bg4 {[%clk 0:02:58]} 6. Bc4 {[%clk 0:02:57]}  e6 {[%clk 0:02:54]} 7. h3 {[%clk 0:02:56]}  Qh5 {[%clk 0:02:53]} 8. Be2 {[%clk 0:02:54]}  Nc6 {[%clk 0:02:50]} 9. O-O {[%clk 0:02:53]}  Bxh3 {[%clk 0:02:47]} 10. gxh3 {[%clk 0:02:53]}  Qxh3 {[%clk 0:02:48]} 11. Bf4 {[%clk 0:02:52]}  O-O-O {[%clk 0:02:41]} 12. Re1 {[%clk 0:02:43]}  g5 {[%clk 0:02:38]} 13. Bf1 {[%clk 0:02:32]}  Qg4+ {[%clk 0:02:29]} 14. Bg3 {[%clk 0:02:32]}  Bc5 {[%clk 0:02:21]} 15. Ne5 {[%clk 0:02:15]}  Nxe5 {[%clk 0:02:15]} 16. Qxg4 {[%clk 0:02:15]}  Nexg4 {[%clk 0:02:12]} 17. dxc5 {[%clk 0:02:14]}  Rd2 {[%clk 0:02:10]} 18. Bd3 {[%clk 0:02:05]}  h5 {[%clk 0:01:59]} 19. Nb1 {[%clk 0:02:03]}  Rxd3 {[%clk 0:01:47]} 20. cxd3 {[%clk 0:02:03]}  Nd7 {[%clk 0:01:45]} 21. f3 {[%clk 0:02:00]}  Nh6 {[%clk 0:01:43]} 22. d4 {[%clk 0:01:58]}  Nf5 {[%clk 0:01:41]} 23. Bf2 {[%clk 0:01:58]}  g4 {[%clk 0:01:40]} 24. fxg4 {[%clk 0:01:56]}  hxg4 {[%clk 0:01:41]} 25. Nc3 {[%clk 0:01:54]}  g3 {[%clk 0:01:39]} 26. Be3 {[%clk 0:01:54]}  Rh2 {[%clk 0:01:39]} 27. Re2 {[%clk 0:01:44]}  Rxe2 {[%clk 0:01:37]} 28. Nxe2 {[%clk 0:01:45]}  Nxe3 {[%clk 0:01:38]} 29. Nxg3 {[%clk 0:01:46]}  Nf6 {[%clk 0:01:24]} 30. Re1 {[%clk 0:01:42]}  Nfd5 {[%clk 0:01:20]} 31. Re2 {[%clk 0:01:38]}  Kd7 {[%clk 0:01:13]} 32. Nf1 {[%clk 0:01:28]}  Nf5 {[%clk 0:01:09]} 33. Nd2 {[%clk 0:01:22]}  Nxd4 {[%clk 0:01:07]} 34. Rf2 {[%clk 0:01:17]}  f5 {[%clk 0:01:05]} 35. a3 {[%clk 0:01:08]}  e5 {[%clk 0:01:03]} 36. Rh2 {[%clk 0:01:05]}  e4 {[%clk 0:00:59]} 37. Rh4 {[%clk 0:00:56]}  f4 {[%clk 0:00:52]} 38. Rh7+ {[%clk 0:00:51]}  Ke6 {[%clk 0:00:32]} 39. Nxe4 {[%clk 0:00:52]}  Ke5 {[%clk 0:00:30]} 40. Nd2 {[%clk 0:00:41]}  Ne6 {[%clk 0:00:23]} 41. Kf2 {[%clk 0:00:39]}  Nxc5 {[%clk 0:00:20]} 42. Rh5+ {[%clk 0:00:29]}  Kd6 {[%clk 0:00:13]} 43. Nc4+ {[%clk 0:00:26]}  Ke6 {[%clk 0:00:09]} 44. Re5+ {[%clk 0:00:24]}  Kf6 {[%clk 0:00:10]} 45. Rxd5 {[%clk 0:00:23]}  Ne6 {[%clk 0:00:08]} 46. Rd7 {[%clk 0:00:20]}  Kf5 {[%clk 0:00:06]} 47. Rf7+ {[%clk 0:00:17]}  Ke4 {[%clk 0:00:06]} 48. Rf6 {[%clk 0:00:17]}  Kd5 {[%clk 0:00:06]} 49. Nd2 {[%clk 0:00:17]}  Nc5 {[%clk 0:00:06]} 50. b4 {[%clk 0:00:16]}  Nd3+ {[%clk 0:00:05]} 51. Kf3 {[%clk 0:00:16]}  c6 {[%clk 0:00:03]} 52. Ne4 {[%clk 0:00:14]}  a6 {[%clk 0:00:02]} 53. Rd6+ {[%clk 0:00:13]}  Kc4 {[%clk 0:00:03]} 54. Nd2+ {[%clk 0:00:12]}  Kc3 {[%clk 0:00:03]} 55. Ne4+ {[%clk 0:00:13]}  Kc4 {[%clk 0:00:03]} 56. Rd8 {[%clk 0:00:13]}  b6 {[%clk 0:00:03]} 57. Nd6+ {[%clk 0:00:12]}  Kb3 {[%clk 0:00:02]} 58. Nc8 {[%clk 0:00:09]}  b5 {[%clk 0:00:02]} 59. Rxd3+ {[%clk 0:00:09]}  Kc4 {[%clk 0:00:02]} 60. Ke4 {[%clk 0:00:09]}  c5 {[%clk 0:00:02]} 61. bxc5 {[%clk 0:00:08]}  Kxc5 {[%clk 0:00:03]} 62. Nd6 {[%clk 0:00:08]}  a5 {[%clk 0:00:03]} 63. Nb7+ {[%clk 0:00:08]}  Kb6 {[%clk 0:00:03]} 64. Nxa5 {[%clk 0:00:09]}  Kxa5 {[%clk 0:00:04]} 65. Kxf4 {[%clk 0:00:10]}  Ka4 {[%clk 0:00:04]} 66. Ke4 {[%clk 0:00:10]}  Ka5 {[%clk 0:00:05]} 67. Kd4 {[%clk 0:00:09]}  Ka4 {[%clk 0:00:06]} 68. Kc5 {[%clk 0:00:08]}  b4 {[%clk 0:00:06]} 69. Rd4 {[%clk 0:00:07]}  Ka5 {[%clk 0:00:04]} 70. axb4+ {[%clk 0:00:05]}  Ka6 {[%clk 0:00:04]} 71. b5+ {[%clk 0:00:06]}  Ka5 {[%clk 0:00:05]} 72. b6 {[%clk 0:00:06]}  Ka6 {[%clk 0:00:06]} 73. Kc6 {[%clk 0:00:05]}  Ka5 {[%clk 0:00:06]} 74. Re4 {[%clk 0:00:06]}  Ka6 {[%clk 0:00:07]} 75. Ra4# {[%clk 0:00:07]} 1-0


[Site "https://www.chess.com"]

[Event "Titled Tuesday Blitz March 08 Early 2022"]
[White "Jacobson, Aaron"]
[Black "Korkmaz, Necmettin"]
[WhiteFideId "2089912"]
[BlackFideId "6303285"]
[WhiteElo "2265"]
[BlackElo "2094"]
[Result "1-0"]
[Round "07"]
[TimeControl "180+1"]
[Date "2022.03.09"]
[WhiteClock "0:01:40"]
[BlackClock "0:00:57"]

1. e4 {[%clk 0:03:00]}  e5 {[%clk 0:02:56]} 2. d4 {[%clk 0:02:24]}  exd4 {[%clk 0:02:52]} 3. Qxd4 {[%clk 0:02:25]}  Nc6 {[%clk 0:02:52]} 4. Qd3 {[%clk 0:02:26]}  Nf6 {[%clk 0:02:45]} 5. Nc3 {[%clk 0:02:26]}  Bb4 {[%clk 0:02:43]} 6. Bd2 {[%clk 0:02:27]}  O-O {[%clk 0:02:42]} 7. O-O-O {[%clk 0:02:27]}  Re8 {[%clk 0:02:43]} 8. Nge2 {[%clk 0:02:28]}  d6 {[%clk 0:02:39]} 9. Bg5 {[%clk 0:02:28]}  Be6 {[%clk 0:02:30]} 10. f4 {[%clk 0:02:26]}  Qc8 {[%clk 0:02:19]} 11. Bxf6 {[%clk 0:02:25]}  gxf6 {[%clk 0:02:18]} 12. f5 {[%clk 0:02:25]}  Bd7 {[%clk 0:02:11]} 13. Nd5 {[%clk 0:02:25]}  Qd8 {[%clk 0:02:10]} 14. Nef4 {[%clk 0:02:16]}  Kh8 {[%clk 0:01:59]} 15. Nh5 {[%clk 0:02:15]}  Ne5 {[%clk 0:01:58]} 16. Qh3 {[%clk 0:02:14]}  Rg8 {[%clk 0:01:29]} 17. Nxb4 {[%clk 0:02:09]}  Ng4 {[%clk 0:01:26]} 18. Rd2 {[%clk 0:02:03]}  Qe7 {[%clk 0:01:22]} 19. Nd5 {[%clk 0:01:46]}  Qxe4 {[%clk 0:01:17]} 20. Nhxf6 {[%clk 0:01:47]}  Qxf5 {[%clk 0:01:14]} 21. Bd3 {[%clk 0:01:40]}  Nxf6 {[%clk 0:00:56]} 22. Bxf5 {[%clk 0:01:39]}  Bxf5 {[%clk 0:00:56]} 23. Qxf5 {[%clk 0:01:40]}  Nxd5 {[%clk 0:00:56]} 24. Qxd5 {[%clk 0:01:40]}  Rg7 {[%clk 0:00:57]} 25. Qd4 {[%clk 0:01:40]} 1-0


[Site "https://www.chess.com"]

[Event "Titled Tuesday Blitz March 08 Early 2022"]
[White "Johnson, Ben"]
[Black "Qashashvili, Alexandre"]
[WhiteFideId "2010917"]
[BlackFideId "13600842"]
[WhiteElo "2195"]
[BlackElo "2316"]
[Result "1-0"]
[Round "07"]
[TimeControl "180+1"]
[Date "2022.03.09"]
[WhiteClock "0:00:11"]
[BlackClock "0:00:25"]

1. Nf3 {[%clk 0:03:00]}  c6 {[%clk 0:02:59]} 2. c4 {[%clk 0:02:57]}  d5 {[%clk 0:03:00]} 3. e3 {[%clk 0:02:54]}  Nf6 {[%clk 0:03:00]} 4. Nc3 {[%clk 0:02:54]}  e6 {[%clk 0:02:58]} 5. b3 {[%clk 0:02:53]}  Be7 {[%clk 0:02:57]} 6. Bb2 {[%clk 0:02:53]}  O-O {[%clk 0:02:57]} 7. Qc2 {[%clk 0:02:49]}  Nbd7 {[%clk 0:02:56]} 8. Rg1 {[%clk 0:02:34]}  Qa5 {[%clk 0:02:53]} 9. g4 {[%clk 0:02:31]}  Ba3 {[%clk 0:02:53]} 10. g5 {[%clk 0:02:26]}  Ne4 {[%clk 0:02:40]} 11. Nxe4 {[%clk 0:02:18]}  dxe4 {[%clk 0:02:40]} 12. Bxa3 {[%clk 0:02:00]}  Qxa3 {[%clk 0:02:39]} 13. Qxe4 {[%clk 0:02:00]}  Nc5 {[%clk 0:02:26]} 14. Qc2 {[%clk 0:01:54]}  Rd8 {[%clk 0:02:22]} 15. d4 {[%clk 0:01:51]}  Qb4+ {[%clk 0:02:19]} 16. Ke2 {[%clk 0:01:40]}  Nd7 {[%clk 0:02:11]} 17. h4 {[%clk 0:01:36]}  e5 {[%clk 0:02:11]} 18. Rd1 {[%clk 0:01:17]}  exd4 {[%clk 0:01:58]} 19. Rxd4 {[%clk 0:01:13]}  c5 {[%clk 0:01:58]} 20. Rd5 {[%clk 0:01:09]}  b6 {[%clk 0:01:54]} 21. Ne5 {[%clk 0:01:03]}  g6 {[%clk 0:01:34]} 22. Nc6 {[%clk 0:00:58]}  Qa3 {[%clk 0:01:30]} 23. Nxd8 {[%clk 0:00:55]}  Nf8 {[%clk 0:01:30]} 24. Bg2 {[%clk 0:00:46]}  Bg4+ {[%clk 0:01:23]} 25. Bf3 {[%clk 0:00:39]}  Bf5 {[%clk 0:01:22]} 26. Be4 {[%clk 0:00:33]}  Bxe4 {[%clk 0:01:19]} 27. Qxe4 {[%clk 0:00:33]}  Qxa2+ {[%clk 0:01:19]} 28. Rd2 {[%clk 0:00:34]}  Qxb3 {[%clk 0:01:17]} 29. Qxa8 {[%clk 0:00:31]}  Qxc4+ {[%clk 0:01:17]} 30. Kf3 {[%clk 0:00:29]}  Qxh4 {[%clk 0:01:12]} 31. Qe4 {[%clk 0:00:28]}  Qh3+ {[%clk 0:01:08]} 32. Rg3 {[%clk 0:00:28]}  Qh1+ {[%clk 0:01:08]} 33. Kf4 {[%clk 0:00:27]}  Qh4+ {[%clk 0:01:05]} 34. Ke5 {[%clk 0:00:22]}  f6+ {[%clk 0:00:35]} 35. gxf6 {[%clk 0:00:17]}  Qh5+ {[%clk 0:00:30]} 36. Kd6 {[%clk 0:00:14]}  c4 {[%clk 0:00:28]} 37. Qd5+ {[%clk 0:00:14]}  Kh8 {[%clk 0:00:26]} 38. Qxh5 {[%clk 0:00:13]}  gxh5 {[%clk 0:00:26]} 39. Ke7 {[%clk 0:00:13]}  h6 {[%clk 0:00:26]} 40. Kxf8 {[%clk 0:00:12]}  h4 {[%clk 0:00:25]} 41. Rg8+ {[%clk 0:00:11]}  Kh7 {[%clk 0:00:25]} 42. Rd7# {[%clk 0:00:11]} 1-0


[Site "https://www.chess.com"]

[Event "Titled Tuesday Blitz March 08 Early 2022"]
[White "Kadam, Om Manish"]
[Black "Barrientos, Sergio E"]
[WhiteFideId "45076294"]
[BlackFideId "4401824"]
[WhiteElo "1729"]
[BlackElo "2397"]
[Result "1-0"]
[Round "07"]
[TimeControl "180+1"]
[Date "2022.03.09"]
[WhiteClock "0:01:27"]
[BlackClock "0:01:18"]

1. e4 {[%clk 0:03:00]}  c5 {[%clk 0:02:56]} 2. Nf3 {[%clk 0:03:00]}  d6 {[%clk 0:02:55]} 3. d4 {[%clk 0:03:00]}  Nf6 {[%clk 0:02:54]} 4. Nc3 {[%clk 0:03:00]}  cxd4 {[%clk 0:02:54]} 5. Nxd4 {[%clk 0:03:01]}  g6 {[%clk 0:02:54]} 6. Be3 {[%clk 0:03:00]}  a6 {[%clk 0:02:52]} 7. f3 {[%clk 0:02:54]}  Nbd7 {[%clk 0:02:47]} 8. Qd2 {[%clk 0:02:52]}  Bg7 {[%clk 0:02:46]} 9. g4 {[%clk 0:02:48]}  b5 {[%clk 0:02:45]} 10. h3 {[%clk 0:02:42]}  Bb7 {[%clk 0:02:41]} 11. a3 {[%clk 0:02:24]}  Rc8 {[%clk 0:02:37]} 12. Be2 {[%clk 0:02:23]}  O-O {[%clk 0:02:36]} 13. h4 {[%clk 0:02:16]}  Ne5 {[%clk 0:02:30]} 14. h5 {[%clk 0:02:08]}  Qd7 {[%clk 0:02:06]} 15. hxg6 {[%clk 0:02:06]}  fxg6 {[%clk 0:02:06]} 16. Bh6 {[%clk 0:02:01]}  Bxh6 {[%clk 0:02:00]} 17. Qxh6 {[%clk 0:02:00]}  Rxc3 {[%clk 0:01:54]} 18. bxc3 {[%clk 0:01:59]}  Rc8 {[%clk 0:01:40]} 19. g5 {[%clk 0:01:29]}  Nh5 {[%clk 0:01:24]} 20. Rxh5 {[%clk 0:01:28]}  gxh5 {[%clk 0:01:25]} 21. Ne6 {[%clk 0:01:28]}  Kf7 {[%clk 0:01:18]} 22. Qxh7+ {[%clk 0:01:27]} 1-0


[Site "https://www.chess.com"]

[Event "Titled Tuesday Blitz March 08 Early 2022"]
[White "Kamara, Ansumana"]
[Black "Matveeva, Olga"]
[WhiteFideId "1622218"]
[BlackFideId "24107018"]
[WhiteElo "1935"]
[BlackElo "2083"]
[Result "0-1"]
[Round "07"]
[TimeControl "180+1"]
[Date "2022.03.09"]
[WhiteClock "0:00:59"]
[BlackClock "0:01:12"]

1. e4 {[%clk 0:03:00]}  e6 {[%clk 0:02:59]} 2. d4 {[%clk 0:02:59]}  d5 {[%clk 0:02:59]} 3. Nc3 {[%clk 0:02:59]}  Nf6 {[%clk 0:02:58]} 4. e5 {[%clk 0:02:59]}  Nfd7 {[%clk 0:02:58]} 5. f4 {[%clk 0:02:59]}  c5 {[%clk 0:02:58]} 6. Nf3 {[%clk 0:02:59]}  Nc6 {[%clk 0:02:55]} 7. Be3 {[%clk 0:02:59]}  cxd4 {[%clk 0:02:55]} 8. Nxd4 {[%clk 0:02:58]}  Bc5 {[%clk 0:02:56]} 9. Qd2 {[%clk 0:02:57]}  O-O {[%clk 0:02:55]} 10. O-O-O {[%clk 0:02:56]}  a6 {[%clk 0:02:55]} 11. g4 {[%clk 0:02:55]}  Bxd4 {[%clk 0:02:50]} 12. Bxd4 {[%clk 0:02:55]}  b5 {[%clk 0:02:51]} 13. h4 {[%clk 0:02:51]}  b4 {[%clk 0:02:49]} 14. Ne2 {[%clk 0:02:50]}  a5 {[%clk 0:02:49]} 15. Kb1 {[%clk 0:02:50]}  Ba6 {[%clk 0:02:49]} 16. g5 {[%clk 0:02:42]}  Qc7 {[%clk 0:02:48]} 17. Nc1 {[%clk 0:02:40]}  Rfc8 {[%clk 0:02:45]} 18. Bxa6 {[%clk 0:02:38]}  Rxa6 {[%clk 0:02:46]} 19. h5 {[%clk 0:02:38]}  Nxd4 {[%clk 0:02:45]} 20. Qxd4 {[%clk 0:02:33]}  Qxc2+ {[%clk 0:02:44]} 21. Ka1 {[%clk 0:02:33]}  Nc5 {[%clk 0:02:36]} 22. Rd2 {[%clk 0:02:18]}  Qe4 {[%clk 0:02:29]} 23. Qxe4 {[%clk 0:02:12]}  Nxe4 {[%clk 0:02:30]} 24. Rg2 {[%clk 0:02:06]}  a4 {[%clk 0:02:27]} 25. g6 {[%clk 0:02:04]}  Rac6 {[%clk 0:02:18]} 26. gxh7+ {[%clk 0:02:02]}  Kxh7 {[%clk 0:02:17]} 27. Kb1 {[%clk 0:01:59]}  a3 {[%clk 0:02:14]} 28. bxa3 {[%clk 0:01:56]}  bxa3 {[%clk 0:02:13]} 29. Nb3 {[%clk 0:01:56]}  Rc3 {[%clk 0:02:05]} 30. Rhg1 {[%clk 0:01:55]}  Rg8 {[%clk 0:01:56]} 31. Rc2 {[%clk 0:01:50]}  Rxc2 {[%clk 0:01:54]} 32. Kxc2 {[%clk 0:01:47]}  Rc8+ {[%clk 0:01:54]} 33. Kd3 {[%clk 0:01:39]}  Rc3+ {[%clk 0:01:52]} 34. Kd4 {[%clk 0:01:33]}  Rc2 {[%clk 0:01:51]} 35. Nc1 {[%clk 0:01:23]}  Rh2 {[%clk 0:01:43]} 36. Re1 {[%clk 0:01:18]}  Rxh5 {[%clk 0:01:31]} 37. Re3 {[%clk 0:01:16]}  Rh4 {[%clk 0:01:30]} 38. Ne2 {[%clk 0:01:15]}  Rh2 {[%clk 0:01:27]} 39. f5 {[%clk 0:01:07]}  exf5 {[%clk 0:01:17]} 40. Kxd5 {[%clk 0:01:06]}  Rxe2 {[%clk 0:01:16]} 41. Rxe2 {[%clk 0:01:04]}  Nc3+ {[%clk 0:01:16]} 42. Kc4 {[%clk 0:01:02]}  Nxe2 {[%clk 0:01:16]} 43. Kb4 {[%clk 0:01:02]}  f4 {[%clk 0:01:16]} 44. Kxa3 {[%clk 0:01:02]}  f3 {[%clk 0:01:16]} 45. Kb4 {[%clk 0:01:02]}  f2 {[%clk 0:01:16]} 46. a4 {[%clk 0:01:03]}  f1=Q {[%clk 0:01:16]} 47. a5 {[%clk 0:01:03]}  Qb1+ {[%clk 0:01:16]} 48. Kc5 {[%clk 0:01:03]}  Qa2 {[%clk 0:01:12]} 49. Kb6 {[%clk 0:01:02]}  Qb3+ {[%clk 0:01:12]} 50. Ka7 {[%clk 0:00:59]}  Nd4 {[%clk 0:01:11]} 51. a6 {[%clk 0:00:59]}  Nc6+ {[%clk 0:01:11]} 52. Ka8 {[%clk 0:00:59]}  Qb8# {[%clk 0:01:12]} 0-1


[Site "https://www.chess.com"]

[Event "Titled Tuesday Blitz March 08 Early 2022"]
[White "Khabinets, Ivan"]
[Black "Zanette, Edgard Vinicius"]
[WhiteFideId "14115980"]
[BlackFideId "2109263"]
[WhiteElo "2114"]
[BlackElo "2182"]
[Result "0-1"]
[Round "07"]
[TimeControl "180+1"]
[Date "2022.03.09"]
[WhiteClock "0:00:23"]
[BlackClock "0:00:40"]

1. e4 {[%clk 0:02:57]}  e5 {[%clk 0:02:59]} 2. Nf3 {[%clk 0:02:56]}  Nc6 {[%clk 0:03:00]} 3. Bb5 {[%clk 0:02:56]}  a6 {[%clk 0:03:00]} 4. Ba4 {[%clk 0:02:56]}  Nf6 {[%clk 0:03:00]} 5. Nc3 {[%clk 0:02:56]}  b5 {[%clk 0:02:57]} 6. Bb3 {[%clk 0:02:56]}  Bc5 {[%clk 0:02:57]} 7. O-O {[%clk 0:02:55]}  O-O {[%clk 0:02:57]} 8. Re1 {[%clk 0:02:54]}  d6 {[%clk 0:02:56]} 9. Nd5 {[%clk 0:02:54]}  Na5 {[%clk 0:02:48]} 10. Nxf6+ {[%clk 0:02:48]}  Qxf6 {[%clk 0:02:49]} 11. h3 {[%clk 0:02:46]}  Nxb3 {[%clk 0:02:47]} 12. axb3 {[%clk 0:02:46]}  Bb7 {[%clk 0:02:47]} 13. d3 {[%clk 0:02:04]}  h6 {[%clk 0:02:45]} 14. Be3 {[%clk 0:02:03]}  Bxe3 {[%clk 0:02:33]} 15. Rxe3 {[%clk 0:02:04]}  c5 {[%clk 0:02:25]} 16. Nh2 {[%clk 0:02:01]}  Qe6 {[%clk 0:02:14]} 17. Nf1 {[%clk 0:01:53]}  f5 {[%clk 0:02:11]} 18. f3 {[%clk 0:01:47]}  f4 {[%clk 0:02:08]} 19. Re2 {[%clk 0:01:47]}  Rae8 {[%clk 0:01:50]} 20. c3 {[%clk 0:01:45]}  Rf6 {[%clk 0:01:32]} 21. d4 {[%clk 0:01:42]}  exd4 {[%clk 0:01:24]} 22. cxd4 {[%clk 0:01:43]}  cxd4 {[%clk 0:01:24]} 23. Qxd4 {[%clk 0:01:44]}  Qxb3 {[%clk 0:01:24]} 24. Rc1 {[%clk 0:01:44]}  Qf7 {[%clk 0:01:20]} 25. Rec2 {[%clk 0:01:27]}  Re7 {[%clk 0:01:20]} 26. Qb6 {[%clk 0:01:21]}  d5 {[%clk 0:01:14]} 27. Qd8+ {[%clk 0:01:13]}  Re8 {[%clk 0:01:14]} 28. Qa5 {[%clk 0:01:07]}  dxe4 {[%clk 0:01:13]} 29. Rc7 {[%clk 0:01:07]}  Qd5 {[%clk 0:01:03]} 30. Qb4 {[%clk 0:00:42]}  exf3 {[%clk 0:00:55]} 31. R1c5 {[%clk 0:00:30]}  Qe4 {[%clk 0:00:47]} 32. Qxe4 {[%clk 0:00:22]}  Bxe4 {[%clk 0:00:47]} 33. gxf3 {[%clk 0:00:22]}  Bxf3 {[%clk 0:00:48]} 34. Nd2 {[%clk 0:00:23]}  Bh5 {[%clk 0:00:41]} 35. Ra7 {[%clk 0:00:22]}  Re1+ {[%clk 0:00:40]} 36. Kf2 {[%clk 0:00:22]}  Re2+ {[%clk 0:00:40]} 37. Kf1 {[%clk 0:00:23]}  Rxd2 {[%clk 0:00:40]} 0-1


[Site "https://www.chess.com"]

[Event "Titled Tuesday Blitz March 08 Early 2022"]
[White "Kostiukov, Alexandr"]
[Black "Flis, Pawel"]
[WhiteFideId "14108100"]
[BlackFideId "1112864"]
[WhiteElo "2202"]
[BlackElo "1735"]
[Result "1-0"]
[Round "07"]
[TimeControl "180+1"]
[Date "2022.03.09"]
[WhiteClock "0:00:09"]
[BlackClock "0:00:03"]

1. e4 {[%clk 0:02:58]}  c5 {[%clk 0:02:59]} 2. Nf3 {[%clk 0:02:58]}  d6 {[%clk 0:03:00]} 3. d4 {[%clk 0:02:59]}  Nf6 {[%clk 0:03:00]} 4. e5 {[%clk 0:02:48]}  dxe5 {[%clk 0:02:55]} 5. dxe5 {[%clk 0:02:49]}  Qxd1+ {[%clk 0:02:49]} 6. Kxd1 {[%clk 0:02:50]}  Nd5 {[%clk 0:02:36]} 7. c4 {[%clk 0:02:49]}  Nc7 {[%clk 0:02:31]} 8. Nc3 {[%clk 0:02:48]}  Nc6 {[%clk 0:02:29]} 9. Be3 {[%clk 0:02:45]}  b6 {[%clk 0:02:26]} 10. Bd3 {[%clk 0:02:44]}  Bg4 {[%clk 0:02:25]} 11. Be4 {[%clk 0:02:41]}  O-O-O+ {[%clk 0:02:17]} 12. Ke1 {[%clk 0:02:20]}  Bxf3 {[%clk 0:02:16]} 13. gxf3 {[%clk 0:02:16]}  Nd4 {[%clk 0:02:15]} 14. a4 {[%clk 0:02:08]}  f5 {[%clk 0:01:56]} 15. exf6 {[%clk 0:02:00]}  exf6 {[%clk 0:01:56]} 16. a5 {[%clk 0:01:56]}  f5 {[%clk 0:01:38]} 17. axb6 {[%clk 0:01:53]}  axb6 {[%clk 0:01:32]} 18. Bxd4 {[%clk 0:01:41]}  fxe4 {[%clk 0:01:28]} 19. Be5 {[%clk 0:01:35]}  exf3 {[%clk 0:01:26]} 20. Bxc7 {[%clk 0:01:31]}  Kxc7 {[%clk 0:01:23]} 21. Nb5+ {[%clk 0:01:26]}  Kc6 {[%clk 0:00:47]} 22. Ra7 {[%clk 0:01:21]}  Re8+ {[%clk 0:00:45]} 23. Kd1 {[%clk 0:01:20]}  Re7 {[%clk 0:00:45]} 24. Ra8 {[%clk 0:01:12]}  g6 {[%clk 0:00:35]} 25. Re1 {[%clk 0:00:32]}  Rxe1+ {[%clk 0:00:29]} 26. Kxe1 {[%clk 0:00:33]}  Bg7 {[%clk 0:00:29]} 27. Ra7 {[%clk 0:00:33]}  Be5 {[%clk 0:00:22]} 28. Re7 {[%clk 0:00:28]}  Bxh2 {[%clk 0:00:19]} 29. Nc3 {[%clk 0:00:19]}  Kd6 {[%clk 0:00:16]} 30. Nd5 {[%clk 0:00:19]}  g5 {[%clk 0:00:12]} 31. Rb7 {[%clk 0:00:13]}  Kc6 {[%clk 0:00:10]} 32. Rxb6+ {[%clk 0:00:13]}  Kd7 {[%clk 0:00:09]} 33. Rh6 {[%clk 0:00:12]}  Be5 {[%clk 0:00:05]} 34. b3 {[%clk 0:00:10]}  g4 {[%clk 0:00:03]} 35. Rh5 {[%clk 0:00:09]} 1-0


[Site "https://www.chess.com"]

[Event "Titled Tuesday Blitz March 08 Early 2022"]
[White "Kouskoutis, Georgios-Alexandros"]
[Black "Kirillov, Dmitry"]
[WhiteFideId "4234049"]
[BlackFideId "34180572"]
[WhiteElo "2130"]
[BlackElo "2076"]
[Result "1/2-1/2"]
[Round "07"]
[TimeControl "180+1"]
[Date "2022.03.09"]
[WhiteClock "0:00:03"]
[BlackClock "0:00:01"]

1. c4 {[%clk 0:03:00]}  e5 {[%clk 0:02:57]} 2. g3 {[%clk 0:03:00]}  c6 {[%clk 0:02:57]} 3. Bg2 {[%clk 0:03:01]}  d5 {[%clk 0:02:57]} 4. cxd5 {[%clk 0:03:02]}  cxd5 {[%clk 0:02:58]} 5. d4 {[%clk 0:03:01]}  e4 {[%clk 0:02:58]} 6. Nc3 {[%clk 0:03:01]}  Bb4 {[%clk 0:02:59]} 7. f3 {[%clk 0:02:59]}  exf3 {[%clk 0:02:29]} 8. Nxf3 {[%clk 0:03:00]}  Nf6 {[%clk 0:02:29]} 9. Bg5 {[%clk 0:02:37]}  Be6 {[%clk 0:02:15]} 10. Qa4+ {[%clk 0:02:06]}  Nc6 {[%clk 0:02:14]} 11. Ne5 {[%clk 0:02:06]}  Bxc3+ {[%clk 0:01:43]} 12. bxc3 {[%clk 0:02:07]}  O-O {[%clk 0:01:43]} 13. O-O {[%clk 0:01:51]}  Nxe5 {[%clk 0:01:42]} 14. dxe5 {[%clk 0:01:19]}  Qb6+ {[%clk 0:01:41]} 15. Qd4 {[%clk 0:01:20]}  Nd7 {[%clk 0:01:32]} 16. Be7 {[%clk 0:01:13]}  Rfc8 {[%clk 0:01:23]} 17. Kh1 {[%clk 0:01:11]}  Rc4 {[%clk 0:01:06]} 18. Qxb6 {[%clk 0:00:57]}  Nxb6 {[%clk 0:00:41]} 19. Rfc1 {[%clk 0:00:45]}  Na4 {[%clk 0:00:38]} 20. Rab1 {[%clk 0:00:27]}  b6 {[%clk 0:00:38]} 21. Rb4 {[%clk 0:00:22]}  Rxc3 {[%clk 0:00:38]} 22. Rd1 {[%clk 0:00:19]}  Nc5 {[%clk 0:00:28]} 23. Bxc5 {[%clk 0:00:17]}  Rxc5 {[%clk 0:00:26]} 24. Rbd4 {[%clk 0:00:13]}  g6 {[%clk 0:00:17]} 25. h4 {[%clk 0:00:12]}  Rac8 {[%clk 0:00:15]} 26. Bxd5 {[%clk 0:00:05]}  Bxd5+ {[%clk 0:00:15]} 27. Rxd5 {[%clk 0:00:06]}  Rxd5 {[%clk 0:00:15]} 28. Rxd5 {[%clk 0:00:07]}  Rc2 {[%clk 0:00:16]} 29. a4 {[%clk 0:00:06]}  Rxe2 {[%clk 0:00:15]} 30. a5 {[%clk 0:00:06]}  bxa5 {[%clk 0:00:12]} 31. Rxa5 {[%clk 0:00:07]}  Re3 {[%clk 0:00:10]} 32. Kg2 {[%clk 0:00:07]}  h5 {[%clk 0:00:05]} 33. Kf2 {[%clk 0:00:05]}  Re4 {[%clk 0:00:06]} 34. Kf3 {[%clk 0:00:05]}  Re1 {[%clk 0:00:06]} 35. Kf2 {[%clk 0:00:06]}  Rb1 {[%clk 0:00:05]} 36. Rxa7 {[%clk 0:00:05]}  Kf8 {[%clk 0:00:05]} 37. Rc7 {[%clk 0:00:03]}  Rb5 {[%clk 0:00:04]} 38. e6 {[%clk 0:00:02]}  fxe6 {[%clk 0:00:05]} 39. Kf3 {[%clk 0:00:03]}  Rf5+ {[%clk 0:00:04]} 40. Ke4 {[%clk 0:00:03]}  Rf7 {[%clk 0:00:03]} 41. Rc6 {[%clk 0:00:04]}  Re7 {[%clk 0:00:03]} 42. Ke5 {[%clk 0:00:03]}  Kf7 {[%clk 0:00:04]} 43. Ra6 {[%clk 0:00:04]}  Re8 {[%clk 0:00:04]} 44. Ra7+ {[%clk 0:00:04]}  Re7 {[%clk 0:00:05]} 45. Ra1 {[%clk 0:00:04]}  Re8 {[%clk 0:00:05]} 46. Rf1+ {[%clk 0:00:04]}  Kg7 {[%clk 0:00:04]} 47. Rf6 {[%clk 0:00:05]}  Ra8 {[%clk 0:00:02]} 48. Rxe6 {[%clk 0:00:05]}  Ra3 {[%clk 0:00:03]} 49. Kf4 {[%clk 0:00:05]}  Ra4+ {[%clk 0:00:02]} 50. Re4 {[%clk 0:00:05]}  Ra3 {[%clk 0:00:02]} 51. Re3 {[%clk 0:00:05]}  Ra1 {[%clk 0:00:02]} 52. Re6 {[%clk 0:00:04]}  Kf7 {[%clk 0:00:01]} 53. Rb6 {[%clk 0:00:04]}  Ra4+ {[%clk 0:00:02]} 54. Kf3 {[%clk 0:00:04]}  Ra3+ {[%clk 0:00:02]} 55. Kg2 {[%clk 0:00:05]}  Ra4 {[%clk 0:00:02]} 56. Kh3 {[%clk 0:00:05]}  Ra3 {[%clk 0:00:02]} 57. Rb4 {[%clk 0:00:05]}  Rf3 {[%clk 0:00:02]} 58. Rb7+ {[%clk 0:00:04]}  Kf6 {[%clk 0:00:02]} 59. Rb6+ {[%clk 0:00:05]}  Kf5 {[%clk 0:00:03]} 60. Rb5+ {[%clk 0:00:05]}  Kf6 {[%clk 0:00:03]} 61. Rb6+ {[%clk 0:00:06]}  Kf5 {[%clk 0:00:04]} 62. Rb5+ {[%clk 0:00:04]}  Ke4 {[%clk 0:00:04]} 63. Rg5 {[%clk 0:00:04]}  Rf6 {[%clk 0:00:04]} 64. g4 {[%clk 0:00:04]}  hxg4+ {[%clk 0:00:03]} 65. Kxg4 {[%clk 0:00:05]}  Rf4+ {[%clk 0:00:03]} 66. Kg3 {[%clk 0:00:05]}  Rf3+ {[%clk 0:00:03]} 67. Kg2 {[%clk 0:00:05]}  Rf6 {[%clk 0:00:03]} 68. Kg3 {[%clk 0:00:03]}  Rf3+ {[%clk 0:00:03]} 69. Kg2 {[%clk 0:00:03]}  Rf6 {[%clk 0:00:03]} 70. Kg3 {[%clk 0:00:03]}  Rf3+ {[%clk 0:00:01]} 1/2-1/2


[Site "https://www.chess.com"]